Workbook

Sheet Presupuesto detallado
B1: PRESUPUESTO DE EJECUCIÓN | C1: Versión | E1: V1
B2: RENOVACIÓN DEL TELEMANDO DE IBAIEDER | C2: Pág:
A3: Código | B3: Resumen | C3: Precio unitario | D3: Cantidad (ud) | E3: Importe total (IVA no inc)
B4: TOTAL | E4: =E5+E15+E111+E284+E340 -> 164,440.91 €
A5: CAP.0 | B5: MIGRACIÓN EN ETAP | E5: =SUM(E6:E14) -> 8,664.64 €
B6: DESCARGADOR DE SOBRETENSIONES LÍNEA EQUIPO VALVETRAB PHOENIX CONTACT con 4 puertos | C6: 198.00 € | D6: 1 | E6: =D6*C6 -> 198.00 €
B7: SWITCH SHDSL 2 PUERTOS ETIC 2 PUERTOS + BYPASS XSLAN + BP2400 // Siemens Scalance equivalente | C7: 1,020.80 € | D7: 1 | E7: =D7*C7 -> 1,020.80 €
B8: ROUTER VPN 4G ETIC IPL-C-100.LE // Siemens Scalance equivalente Inc. antena, kit montaje y cableado 310. | C8: 599.09 € | D8: 1 | E8: =D8*C8 -> 599.09 €
B9: ROUTER VPN 4G ETIC SIG EC-400 4G //Siemens Scalance equivalente capacidad 100 conexiones VPN. inc. antena 4G/pequeño material. | C9: 1,214.75 € | D9: 1 | E9: =D9*C9 -> 1,214.75 €
B10: CPU CONCENTRADOR ETAP SCHNEIDER M580 o SIMATIC S7-1500, CPU 1250-2PN inc periferia y pequeño material. | C10: 2,035.00 € | D10: 1 | E10: =C10*D10 -> 2,035.00 €
B11: 1329Feb_ | C11: 212.00 € | D11: 1 | E11: =C11*D11 -> 212.00 €
B12: TARJETA COMUNICACIONES SIMATIC S7-1500 Ethernet CM1542-1 // Schneider 6GK7542-1AX00-0XE0 BMENOC2501 | C12: 835.00 € | D12: 1 | E12: =C12*D12 -> 835.00 €
B13: INSTALACIÓN Y CONEXIONADO PLC CONCENTRADOR Incluyendo cableado, borneros y pequeño material para su completo conexionado. | C13: 1,100.00 € | D13: 1 | E13: =C13*D13 -> 1,100.00 €
B14: PROGRAMACIÓN COMUNICACIONES ETAP Configuración, parametrización y P.E.M de comunicaciones incluyendo pruebas en taller y emplazamiento, y borrado de anteriores comunicaciones. | C14: 1,450.00 € | D14: 1 | E14: =C14*D14 -> 1,450.00 €
A15: CAP.1 | B15: COMUNICACIONES SEGMENTO 1 | E15: =E16+E28+E41+E55+E64+E74+E88+E100 -> 44,955.28 €
A16: CAP.1.1 | B16: DERIVACIÓN AZKOITIA S5 | E16: =SUM(E17:E27) -> 5,950.39 €
B17: DESCARGADOR DE SOBRETENSIONES LÍNEA EQUIPO VALVETRAB PHOENIX CONTACT con 2 puertos | C17: 70.00 € | D17: 1 | E17: =D17*C17 -> 70.00 €
B18: DESCARGADOR DE SOBRETENSIONES LÍNEA EQUIPO VALVETRAB PHOENIX CONTACT con 4 puertos | C18: 198.00 € | D18: 1 | E18: =D18*C18 -> 198.00 €
B19: SWITCH SHDSL 2 PUERTOS ETIC 2 PUERTOS + BYPASS XSLAN + BP2400 // Siemens Scalance equivalente | C19: 1,020.80 € | D19: 1 | E19: =D19*C19 -> 1,020.80 €
B20: SWITCH SHDSL 1 PUERTO ETIC 1 PUERTO XSLAN + 1400 /Siemenes Scalance equivalente | C20: 742.50 € | D20: 1 | E20: =D20*C20 -> 742.50 €
B21: ROUTER VPN 4G ETIC IPL-C-100.LE // Siemens Scalance equivalente Inc. antena, kit montaje y cableado 310. | C21: 599.09 € | D21: 1 | E21: =D21*C21 -> 599.09 €
B22: CPU ESTACIÓN REMOTA SIMATIC S7-1200 - 1214C 6ES7214-1AG40-0XB0 // Schneider TM251 MESE 14 ED 24V DC; 10 SD 24 V DC; 2 EA incorporadas Siemens. Tarjetas TM3DI16, TMDQ16T, TM3AI8 en el caso Schneider. | C22: 470.00 € | D22: 1 | E22: =C22*D22 -> 470.00 €
B23: MÓDULO DE 1 S. ANALÓGICA SIMATIC S7-1200, SM1221 //EQUIVALENTE SCHNEIDER | C23: 200.00 € | D23: 1 | E23: =C23*D23 -> 200.00 €
B24: INSTALACIÓN Y CONEXIONADO Incluyendo cableado, borneros y pequeño material para su completo conexionado. | C24: 500.00 € | D24: 1 | E24: =C24*D24 -> 500.00 €
B25: PROGRAMACIÓN PLC Y PUESTA EN MARCHA Configuración, parametrización y P.E.M. del PLC local, pruebas en taller y emplazamiento. | C25: 1,450.00 € | D25: 1 | E25: =C25*D25 -> 1,450.00 €
B26: PROGRAMACIÓN COMUNICACIONES SWITCHES SHDSL Configuración, parametrización y P.E.M de comunicaciones incluyendo pruebas en taller y emplazamiento, y borrado de anteriores comunicaciones. | C26: 400.00 € | D26: 1 | E26: =C26*D26 -> 400.00 €
B27: PROGRAMACIÓN SCADA Modificación de la programación, pruebas y puesta en servicio de SCADA Intouch a consecuencia del nuevo hardware y del nuevo mapeado de comunicaciones. | C27: 300.00 € | D27: 1 | E27: =C27*D27 -> 300.00 €
A28: CAP.1.2 | B28: DEPÓSITO DANONA S5 | E28: =SUM(E29:E40) -> 5,773.80 €
B29: SWITCH SHDSL 2 PUERTOS ETIC 2 PUERTOS + BYPASS XSLAN + BP2400 // Siemens Scalance equivalente | C29: 1,020.80 € | D29: 1 | E29: =D29*C29 -> 1,020.80 €
B30: DESCARGADOR DE SOBRETENSIONES LÍNEA EQUIPO VALVETRAB PHOENIX CONTACT con 4 puertos | C30: 198.00 € | D30: 1 | E30: =D30*C30 -> 198.00 €
B31: CPU ESTACIÓN REMOTA SIMATIC S7-1200 - 1214C 6ES7214-1AG40-0XB0 // Schneider TM251 MESE 14 ED 24V DC; 10 SD 24 V DC; 2 EA incorporadas Siemens. Tarjetas TM3DI16, TMDQ16T, TM3AI8 en el caso Schneider. | C31: 470.00 € | D31: 1 | E31: =D31*C31 -> 470.00 €
B32: MÓDULO DE 4 E.ANALÓGICAS SIMATIC S7-1200, SM 1231, 4 EA //6ES7231-4HF32-0XB0 // Schneider TM3AI8 | C32: 250.00 € | D32: 1 | E32: =C32*D32 -> 250.00 €
B33: PANTALLA HMI LOCAL 4" Siemens ETHERNET Y COLOR Basic Pantalla TFT // Schneider equivalente | C33: 315.00 € | D33: 1 | E33: =C33*D33 -> 315.00 €
B34: PUERTA RITTAL AE 1073 RAL7035 en sustitución de la existente. | C34: 270.00 € | D34: 1 | E34: =C34*D34 -> 270.00 €
B35: INSTALACIÓN Y CONEXIONADO Incluyendo cableado, borneros y pequeño material para su completo conexionado. | C35: 500.00 € | D35: 1 | E35: =C35*D35 -> 500.00 €
B36: INSTALACIÓN NUEVA PUERTA RITTAL Sustitución de tapa marca Rittal existente por mismo modelo, incluyendo trabajo de troquelado y montaje de canaletas de la nueva puerta. | C36: 100.00 € | D36: 1 | E36: =C36*D36 -> 100.00 €
B37: PROGRAMACIÓN PLC Y PUESTA EN MARCHA Configuración, parametrización y P.E.M. del PLC local, pruebas en taller y emplazamiento. | C37: 1,450.00 € | D37: 1 | E37: =C37*D37 -> 1,450.00 €
B38: PROGRAMACIÓN PANTALLA HMI Configuración, parametrización pantalla HMI, pruebas en taller y emplazamiento. | C38: 500.00 € | D38: 1 | E38: =C38*D38 -> 500.00 €
B39: PROGRAMACIÓN COMUNICACIONES SWITCHES SHDSL Configuración, parametrización y P.E.M de comunicaciones incluyendo pruebas en taller y emplazamiento, y borrado de anteriores comunicaciones. | C39: 400.00 € | D39: 1 | E39: =C39*D39 -> 400.00 €
B40: PROGRAMACIÓN SCADA Modificación de la programación, pruebas y puesta en servicio de SCADA Intouch a consecuencia del nuevo hardware y del nuevo mapeado de comunicaciones. | C40: 300.00 € | D40: 1 | E40: =C40*D40 -> 300.00 €
A41: CAP.1.3 | B41: DEPÓSITO ZESTOA S5 | E41: =SUM(E42:E54) -> 6,193.80 €
B42: SWITCH SHDSL 2 PUERTOS ETIC 2 PUERTOS + BYPASS XSLAN + BP2400 // Siemens Scalance equivalente | C42: 1,020.80 € | D42: 1 | E42: =D42*C42 -> 1,020.80 €
B43: DESCARGADOR DE SOBRETENSIONES LÍNEA EQUIPO VALVETRAB PHOENIX CONTACT con 4 puertos | C43: 198.00 € | D43: 1 | E43: =D43*C43 -> 198.00 €
B44: CPU ESTACIÓN REMOTA SIMATIC S7-1200 - 1214C 6ES7214-1AG40-0XB0 // SCHNEIDER TM251 MESE 14 ED 24V DC; 10 SD 24 V DC; 2 EA incorporadas Siemens. Tarjetas TM3DI16, TMDQ16T, TM3AI8 en el caso Schneider. | C44: 470.00 € | D44: 1 | E44: =C44*D44 -> 470.00 €
B45: MÓDULO DE 16 E. DIGITALES SIMATIC S7-1200, SM1221 //6ES7221-1BH32-0XB0 TM3DI16 EN EL CASO DE SCHNEIDER | C45: 200.00 € | D45: 1 | E45: =C45*D45 -> 200.00 €
B46: MÓDULO DE 4 E.ANALÓGICAS SIMATIC S7-1200, SM 1231, 4 EA //6ES7231-4HF32-0XB0 // Schneider TM3AI8 | C46: 250.00 € | D46: 1 | E46: =C46*D46 -> 250.00 €
B47: PANTALLA HMI LOCAL 4" Siemens ETHERNET Y COLOR Basic Pantalla TFT // Schneider equivalente | C47: 315.00 € | D47: 1 | E47: =C47*D47 -> 315.00 €
B48: PUERTA RITTAL AE 1180 RAL7035 en sustitución de la existente. | C48: 290.00 € | D48: 1 | E48: =C48*D48 -> 290.00 €
B49: INSTALACIÓN Y CONEXIONADO Incluyendo cableado, borneros y pequeño material para su completo conexionado. | C49: 700.00 € | D49: 1 | E49: =C49*D49 -> 700.00 €
B50: INSTALACIÓN NUEVA PUERTA RITTAL Sustitución de tapa marca Rittal existente por mismo modelo, incluyendo trabajo de troquelado y montaje de canaletas de la nueva puerta. | C50: 100.00 € | D50: 1 | E50: =C50*D50 -> 100.00 €
B51: PROGRAMACIÓN PLC Y PUESTA EN MARCHA Configuración, parametrización y P.E.M. del PLC local, pruebas en taller y emplazamiento. | C51: 1,450.00 € | D51: 1 | E51: =C51*D51 -> 1,450.00 €
B52: PROGRAMACIÓN PANTALLA HMI Configuración, parametrización pantalla HMI, pruebas en taller y emplazamiento. | C52: 500.00 € | D52: 1 | E52: =C52*D52 -> 500.00 €
B53: PROGRAMACIÓN COMUNICACIONES SWITCHES SHDSL Configuración, parametrización y P.E.M de comunicaciones incluyendo pruebas en taller y emplazamiento, y borrado de anteriores comunicaciones. | C53: 400.00 € | D53: 1 | E53: =C53*D53 -> 400.00 €
B54: PROGRAMACIÓN SCADA Modificación de la programación, pruebas y puesta en servicio de SCADA Intouch a consecuencia del nuevo hardware y del nuevo mapeado de comunicaciones. | C54: 300.00 € | D54: 1 | E54: =C54*D54 -> 300.00 €
A55: CAP.1.4 | B55: BOMBEO AIZARNA S7 | E55: =SUM(E56:E63) -> 4,653.80 €
B56: SWITCH SHDSL 2 PUERTOS ETIC 2 PUERTOS + BYPASS XSLAN + BP2400 // Siemens Scalance equivalente | C56: 1,020.80 € | D56: 1 | E56: =D56*C56 -> 1,020.80 €
B57: DESCARGADOR DE SOBRETENSIONES LÍNEA EQUIPO VALVETRAB PHOENIX CONTACT con 4 puertos | C57: 198.00 € | D57: 1 | E57: =D57*C57 -> 198.00 €
B58: CP343-1 LEAN Módulo Ethernet SIEMENS 6GK7343-1CX10-0XE0 en sustitución de tarjeta TIM. | C58: 770.00 € | D58: 1 | E58: =C58*D58 -> 770.00 €
B59: CONECTOR DE BUS SIEMENS 6ES7390-0AA00-0AA0 S7 // equivalente Schneider | C59: 15.00 € | D59: 1 | E59: =C59*D59 -> 15.00 €
B60: INSTALACIÓN Y CONEXIONADO Incluyendo cableado, borneros y pequeño material para su completo conexionado. | C60: 500.00 € | D60: 1 | E60: =C60*D60 -> 500.00 €
B61: PROGRAMACIÓN PLC Y PUESTA EN MARCHA Configuración, parametrización y P.E.M. del PLC local, pruebas en taller y emplazamiento. | C61: 1,450.00 € | D61: 1 | E61: =C61*D61 -> 1,450.00 €
B62: PROGRAMACIÓN COMUNICACIONES SWITCHES SHDSL Configuración, parametrización y P.E.M de comunicaciones incluyendo pruebas en taller y emplazamiento, y borrado de anteriores comunicaciones. | C62: 400.00 € | D62: 1 | E62: =C62*D62 -> 400.00 €
B63: PROGRAMACIÓN SCADA Modificación de la programación, pruebas y puesta en servicio de SCADA Intouch a consecuencia del nuevo hardware y del nuevo mapeado de comunicaciones. | C63: 300.00 € | D63: 1 | E63: =C63*D63 -> 300.00 €
A64: CAP.1.5 | B64: DEPÓSITO AIZARNA | E64: =SUM(E65:E73) -> 4,312.09 €
B65: ROUTER VPN 4G ETIC IPL-C-100.LE // Siemens Scalance equivalente Inc. antena, kit montaje y cableado 310. | C65: 599.09 € | D65: 1 | E65: =D65*C65 -> 599.09 €
B66: DESCARGADOR DE SOBRETENSIONES LÍNEA EQUIPO VALVETRAB PHOENIX CONTACT con 4 puertos | C66: 198.00 € | D66: 1 | E66: =D66*C66 -> 198.00 €
B67: MÓDULO DE COMUNICACIONES RS485 SIMATIC S7-1200, Módulo de comunicación CM 1241 / equivalente Schneider | C67: 145.00 € | D67: 1 | E67: =C67*D67 -> 145.00 €
B68: CPU ESTACIÓN REMOTA SIMATIC S7-1200 - 1214C 6ES7214-1AG40-0XB0 // SCHNEIDER TM251 MESE 14 ED 24V DC; 10 SD 24 V DC; 2 EA incorporadas Siemens. Tarjetas TM3DI16, TMDQ16T, TM3AI8 en el caso Schneider. | C68: 470.00 € | D68: 1 | E68: =C68*D68 -> 470.00 €
B69: MÓDULO DE 4 E.ANALÓGICAS SIMATIC S7-1200, SM 1231, 4 EA //6ES7231-4HF32-0XB0 // Schneider TM3AI8 | C69: 250.00 € | D69: 1 | E69: =C69*D69 -> 250.00 €
B70: INSTALACIÓN Y CONEXIONADO Incluyendo cableado, borneros y pequeño material para su completo conexionado. | C70: 500.00 € | D70: 1 | E70: =C70*D70 -> 500.00 €
B71: PROGRAMACIÓN PLC Y PUESTA EN MARCHA Configuración, parametrización y P.E.M. del PLC local, pruebas en taller y emplazamiento. | C71: 1,450.00 € | D71: 1 | E71: =C71*D71 -> 1,450.00 €
B72: PROGRAMACIÓN COMUNICACIONES SWITCHES SHDSL Configuración, parametrización y P.E.M de comunicaciones incluyendo pruebas en taller y emplazamiento, y borrado de anteriores comunicaciones. | C72: 400.00 € | D72: 1 | E72: =C72*D72 -> 400.00 €
B73: PROGRAMACIÓN SCADA Modificación de la programación, pruebas y puesta en servicio de SCADA Intouch a consecuencia del nuevo hardware y del nuevo mapeado de comunicaciones. | C73: 300.00 € | D73: 1 | E73: =C73*D73 -> 300.00 €
A74: CAP.1.6 | B74: DEPÓSITO SANSINENEA S5 | E74: =SUM(E75:E87) -> 6,328.80 €
B75: SWITCH SHDSL 2 PUERTOS ETIC 2 PUERTOS + BYPASS XSLAN + BP2400 // Siemens Scalance equivalente | C75: 1,020.80 € | D75: 1 | E75: =D75*C75 -> 1,020.80 €
B76: DESCARGADOR DE SOBRETENSIONES LÍNEA EQUIPO VALVETRAB PHOENIX CONTACT con 4 puertos | C76: 198.00 € | D76: 1 | E76: =D76*C76 -> 198.00 €
B77: CPU ESTACIÓN REMOTA SIMATIC S7-1200 - 1214C 6ES7214-1AG40-0XB0 // SCHNEIDER TM251 MESE 14 ED 24V DC; 10 SD 24 V DC; 2 EA incorporadas Siemens. Tarjetas TM3DI16, TMDQ16T, TM3AI8 en el caso Schneider. | C77: 470.00 € | D77: 1 | E77: =C77*D77 -> 470.00 €
B78: MÓDULO DE 16 E. DIGITALES SIMATIC S7-1200, SM1221 //6ES7221-1BH32-0XB0 TM3DI16 EN EL CASO DE SCHNEIDER | C78: 200.00 € | D78: 1 | E78: =C78*D78 -> 200.00 €
B79: MÓDULO DE 4 E.ANALÓGICAS SIMATIC S7-1200, SM 1231, 4 EA //6ES7231-4HF32-0XB0 // Schneider TM3AI8 | C79: 250.00 € | D79: 1 | E79: =C79*D79 -> 250.00 €
B80: PANTALLA HMI LOCAL 7" Siemens ETHERNET Y COLOR Basic Pantalla TFT //Schneider equivalente | C80: 650.00 € | D80: 1 | E80: =C80*D80 -> 650.00 €
B81: PUERTA RITTAL AE 1180 RAL7035 en sustitución de la existente. | C81: 290.00 € | D81: 1 | E81: =C81*D81 -> 290.00 €
B82: INSTALACIÓN Y CONEXIONADO Incluyendo cableado, borneros y pequeño material para su completo conexionado. | C82: 500.00 € | D82: 1 | E82: =C82*D82 -> 500.00 €
B83: INSTALACIÓN NUEVA PUERTA RITTAL Sustitución de tapa marca Rittal existente por mismo modelo, incluyendo trabajo de troquelado y montaje de canaletas de la nueva puerta. | C83: 100.00 € | D83: 1 | E83: =C83*D83 -> 100.00 €
B84: PROGRAMACIÓN PLC Y PUESTA EN MARCHA Configuración, parametrización y P.E.M. del PLC local, pruebas en taller y emplazamiento. | C84: 1,450.00 € | D84: 1 | E84: =C84*D84 -> 1,450.00 €
B85: PROGRAMACIÓN PANTALLA HMI Configuración, parametrización pantalla HMI, pruebas en taller y emplazamiento. | C85: 500.00 € | D85: 1 | E85: =C85*D85 -> 500.00 €
B86: PROGRAMACIÓN COMUNICACIONES SWITCHES SHDSL Configuración, parametrización y P.E.M de comunicaciones incluyendo pruebas en taller y emplazamiento, y borrado de anteriores comunicaciones. | C86: 400.00 € | D86: 1 | E86: =C86*D86 -> 400.00 €
B87: PROGRAMACIÓN SCADA Modificación de la programación, pruebas y puesta en servicio de SCADA Intouch a consecuencia del nuevo hardware y del nuevo mapeado de comunicaciones. | C87: 300.00 € | D87: 1 | E87: =C87*D87 -> 300.00 €
A88: CAP.1.7 | B88: DERIVACIÓN AIZARNAZABAL S5 | E88: =SUM(E89:E99) -> 5,938.80 €
B89: SWITCH SHDSL 2 PUERTOS ETIC 2 PUERTOS + BYPASS XSLAN + BP2400 // Siemens Scalance equivalente | C89: 1,020.80 € | D89: 1 | E89: =D89*C89 -> 1,020.80 €
B90: DESCARGADOR DE SOBRETENSIONES LÍNEA EQUIPO VALVETRAB PHOENIX CONTACT con 4 puertos | C90: 198.00 € | D90: 1 | E90: =D90*C90 -> 198.00 €
B91: CPU ESTACIÓN REMOTA SIMATIC S7-1200 - 1214C 6ES7214-1AG40-0XB0 // SCHNEIDER TM251 MESE 14 ED 24V DC; 10 SD 24 V DC; 2 EA incorporadas Siemens. Tarjetas TM3DI16, TMDQ16T, TM3AI8 en el caso Schneider. | C91: 470.00 € | D91: 1 | E91: =C91*D91 -> 470.00 €
B92: MÓDULO DE 16 E. DIGITALES SIMATIC S7-1200, SM1221 //6ES7221-1BH32-0XB0 TM3DI16 EN EL CASO DE SCHNEIDER | C92: 200.00 € | D92: 1 | E92: =C92*D92 -> 200.00 €
B93: MÓDULO DE 4 E.ANALÓGICAS SIMATIC S7-1200, SM 1231, 4 EA //6ES7231-4HF32-0XB0 // Schneider TM3AI8 | C93: 250.00 € | D93: 1 | E93: =C93*D93 -> 250.00 €
B94: SIMATIC HMI LOCAL 7" Siemens ETHERNET Y COLOR Basic Pantalla TFT Siemens // EQUIVALENTE SCHNEIDER | C94: 650.00 € | D94: 1 | E94: =C94*D94 -> 650.00 €
B95: INSTALACIÓN Y CONEXIONADO Incluyendo cableado, borneros y pequeño material para su completo conexionado. | C95: 500.00 € | D95: 1 | E95: =C95*D95 -> 500.00 €
B96: PROGRAMACIÓN PLC Y PUESTA EN MARCHA Configuración, parametrización y P.E.M. del PLC local, pruebas en taller y emplazamiento. | C96: 1,450.00 € | D96: 1 | E96: =C96*D96 -> 1,450.00 €
B97: PROGRAMACIÓN PANTALLA HMI Configuración, parametrización pantalla HMI, pruebas en taller y emplazamiento. | C97: 500.00 € | D97: 1 | E97: =C97*D97 -> 500.00 €
B98: PROGRAMACIÓN COMUNICACIONES SWTICHES SHDSL Configuración, parametrización y P.E.M de comunicaciones incluyendo pruebas en taller y emplazamiento, y borrado de anteriores comunicaciones. | C98: 400.00 € | D98: 1 | E98: =C98*D98 -> 400.00 €
B99: PROGRAMACIÓN SCADA Modificación de la programación, pruebas y puesta en servicio de SCADA Intouch a consecuencia del nuevo hardware y del nuevo mapeado de comunicaciones. | C99: 300.00 € | D99: 1 | E99: =C99*D99 -> 300.00 €
A100: CAP.1.8 | B100: DEPÓSITO AIZARNAZABAL S7 | E100: =SUM(E101:E110) -> 5,803.80 €
B101: SWITCH SHDSL 2 PUERTOS ETIC 2 PUERTOS + BYPASS XSLAN + BP2400 // Siemens Scalance equivalente | C101: 1,020.80 € | D101: 1 | E101: =D101*C101 -> 1,020.80 €
B102: DESCARGADOR DE SOBRETENSIONES LÍNEA EQUIPO VALVETRAB PHOENIX CONTACT con 4 puertos | C102: 198.00 € | D102: 1 | E102: =D102*C102 -> 198.00 €
B103: CP343-1 LEAN Módulo Ethernet SIEMENS 6GK7343-1CX10-0XE0 en sustitución de tarjeta TIM. | C103: 770.00 € | D103: 1 | E103: =C103*D103 -> 770.00 €
B104: CONECTOR DE BUS SIEMENS 6ES7390-0AA00-0AA0 S7 // equivalente Schneider | C104: 15.00 € | D104: 1 | E104: =C104*D104 -> 15.00 €
B105: SIMATIC HMI LOCAL 7" Siemens ETHERNET Y COLOR Basic Pantalla TFT Siemens // EQUIVALENTE SCHNEIDER | C105: 650.00 € | D105: 1 | E105: =C105*D105 -> 650.00 €
B106: INSTALACIÓN Y CONEXIONADO Incluyendo cableado, borneros y pequeño material para su completo conexionado. | C106: 500.00 € | D106: 1 | E106: =C106*D106 -> 500.00 €
B107: PROGRAMACIÓN PANTALLA HMI Configuración, parametrización pantalla HMI, pruebas en taller y emplazamiento. | C107: 500.00 € | D107: 1 | E107: =C107*D107 -> 500.00 €
B108: PROGRAMACIÓN PLC Y PUESTA EN MARCHA Configuración, parametrización y P.E.M. del PLC local, pruebas en taller y emplazamiento.. | C108: 1,450.00 € | D108: 1 | E108: =C108*D108 -> 1,450.00 €
B109: PROGRAMACIÓN COMUNICACIONES SWITCHES SHDSL Configuración, parametrización y P.E.M de comunicaciones incluyendo pruebas en taller y emplazamiento, y borrado de anteriores comunicaciones. | C109: 400.00 € | D109: 1 | E109: =C109*D109 -> 400.00 €
B110: PROGRAMACIÓN SCADA Modificación de la programación, pruebas y puesta en servicio de SCADA Intouch a consecuencia del nuevo hardware y del nuevo mapeado de comunicaciones. | C110: 300.00 € | D110: 1 | E110: =C110*D110 -> 300.00 €
A111: CAP.2 | B111: COMUNICACIONES SEGMENTO 2 | E111: =E112+E127+E141+E150+E165+E174+E186+E199+E212+E221+E229+E244+E253+E268 -> 85,111.26 €
A112: CAP.2.1 | B112: BOMBEO GETARIA S5 | E112: =SUM(E113:E126) -> 7,177.89 €
B113: SWITCH SHDSL 2 PUERTOS ETIC 2 PUERTOS + BYPASS XSLAN + BP2400 // Siemens Scalance equivalente | C113: 1,020.80 € | D113: 1 | E113: =D113*C113 -> 1,020.80 €
B114: DESCARGADOR DE SOBRETENSIONES LÍNEA EQUIPO VALVETRAB PHOENIX CONTACT con 4 puertos | C114: 198.00 € | D114: 1 | E114: =D114*C114 -> 198.00 €
B115: ROUTER VPN 4G ETIC IPL-C-100.LE // Siemens Scalance equivalente Inc. antena, kit montaje y cableado 310. | C115: 599.09 € | D115: 1 | E115: =D115*C115 -> 599.09 €
B116: CPU ESTACIÓN REMOTA SIMATIC S7-1200 - 1214C 6ES7214-1AG40-0XB0 // SCHNEIDER TM251 MESE 14 ED 24V DC; 10 SD 24 V DC; 2 EA incorporadas Siemens. Tarjetas TM3DI16, TMDQ16T, TM3AI8 en el caso Schneider. | C116: 470.00 € | D116: 1 | E116: =C116*D116 -> 470.00 €
B117: MÓDULO DE 16 E. DIGITALES SIMATIC S7-1200, SM1221 //6ES7221-1BH32-0XB0 TM3DI16 EN EL CASO DE SCHNEIDER | C117: 200.00 € | D117: 1 | E117: =C117*D117 -> 200.00 €
B118: MÓDULO DE 4 E.ANALÓGICAS SIMATIC S7-1200, SM 1231, 4 EA //6ES7231-4HF32-0XB0 // Schneider TM3AI8 | C118: 250.00 € | D118: 2 | E118: =C118*D118 -> 500.00 €
B119: SIMATIC HMI LOCAL 7" Siemens ETHERNET Y COLOR Basic Pantalla TFT Siemens // EQUIVALENTE SCHNEIDER | C119: 650.00 € | D119: 1 | E119: =C119*D119 -> 650.00 €
B120: PUERTA RITTAL AE 1180 RAL7035 En sustitución de la existente. | C120: 290.00 € | D120: 1 | E120: =C120*D120 -> 290.00 €
B121: INSTALACIÓN Y CONEXIONADO Incluyendo cableado, borneros y pequeño material para su completo conexionado. | C121: 500.00 € | D121: 1 | E121: =C121*D121 -> 500.00 €
B122: INSTALACIÓN NUEVA PUERTA RITTAL Sustitución de tapa marca Rittal existente por mismo modelo, incluyendo trabajo de troquelado y montaje de canaletas de la nueva puerta. | C122: 100.00 € | D122: 1 | E122: =C122*D122 -> 100.00 €
B123: PROGRAMACIÓN PLC Y PUESTA EN MARCHA Configuración, parametrización y P.E.M. del PLC local, pruebas en taller y emplazamiento. | C123: 1,450.00 € | D123: 1 | E123: =C123*D123 -> 1,450.00 €
B124: PROGRAMACIÓN PANTALLA HMI Configuración, parametrización pantalla HMI, pruebas en taller y emplazamiento. | C124: 500.00 € | D124: 1 | E124: =C124*D124 -> 500.00 €
B125: PROGRAMACIÓN COMUNICACIONES SWITCHES SHDSL Configuración, parametrización y P.E.M de comunicaciones incluyendo pruebas en taller y emplazamiento, y borrado de anteriores comunicaciones. | C125: 400.00 € | D125: 1 | E125: =C125*D125 -> 400.00 €
B126: PROGRAMACIÓN SCADA Modificación de la programación, pruebas y puesta en servicio de SCADA Intouch a consecuencia del nuevo hardware y del nuevo mapeado de comunicaciones. | C126: 300.00 € | D126: 1 | E126: =C126*D126 -> 300.00 €
A127: CAP.2.2 | B127: DEPÓSITO ASKIZU S5 | E127: =SUM(E128:E140) -> 5,993.80 €
B128: SWITCH SHDSL 2 PUERTOS ETIC 2 PUERTOS + BYPASS XSLAN + BP2400 // Siemens Scalance equivalente | C128: 1,020.80 € | D128: 1 | E128: =D128*C128 -> 1,020.80 €
B129: DESCARGADOR DE SOBRETENSIONES LÍNEA EQUIPO VALVETRAB PHOENIX CONTACT con 4 puertos | C129: 198.00 € | D129: 1 | E129: =D129*C129 -> 198.00 €
B130: CPU ESTACIÓN REMOTA SIMATIC S7-1200 - 1214C 6ES7214-1AG40-0XB0 // SCHNEIDER TM251 MESE 14 ED 24V DC; 10 SD 24 V DC; 2 EA incorporadas Siemens. Tarjetas TM3DI16, TMDQ16T, TM3AI8 en el caso Schneider. | C130: 470.00 € | D130: 1 | E130: =C130*D130 -> 470.00 €
B131: MÓDULO DE 16 E. DIGITALES SIMATIC S7-1200, SM1221 //6ES7221-1BH32-0XB0 TM3DI16 EN EL CASO DE SCHNEIDER | C131: 200.00 € | D131: 1 | E131: =C131*D131 -> 200.00 €
B132: MÓDULO DE 4 E.ANALÓGICAS SIMATIC S7-1200, SM 1231, 4 EA //6ES7231-4HF32-0XB0 // Schneider TM3AI8 | C132: 250.00 € | D132: 1 | E132: =C132*D132 -> 250.00 €
B133: PANTALLA HMI LOCAL 4" Siemens ETHERNET Y COLOR Basic Pantalla TFT // Schneider equivalente | C133: 315.00 € | D133: 1 | E133: =C133*D133 -> 315.00 €
B134: PUERTA RITTAL AE 1180 RAL7035 en sustitución de la existente. | C134: 290.00 € | D134: 1 | E134: =C134*D134 -> 290.00 €
B135: INSTALACIÓN Y CONEXIONADO Incluyendo cableado, borneros y pequeño material para su completo conexionado. | C135: 500.00 € | D135: 1 | E135: =C135*D135 -> 500.00 €
B136: INSTALACIÓN NUEVA PUERTA RITTAL Sustitución de tapa marca Rittal existente por mismo modelo, incluyendo trabajo de troquelado y montaje de canaletas de la nueva puerta. | C136: 100.00 € | D136: 1 | E136: =C136*D136 -> 100.00 €
B137: PROGRAMACIÓN PLC Y PUESTA EN MARCHA Configuración, parametrización y P.E.M. del PLC local, pruebas en taller y emplazamiento. | C137: 1,450.00 € | D137: 1 | E137: =C137*D137 -> 1,450.00 €
B138: PROGRAMACIÓN PANTALLA HMI Configuración, parametrización pantalla HMI, pruebas en taller y emplazamiento. | C138: 500.00 € | D138: 1 | E138: =C138*D138 -> 500.00 €
B139: PROGRAMACIÓN COMUNICACIONES SWITCHES SHDSL Configuración, parametrización y P.E.M de comunicaciones incluyendo pruebas en taller y emplazamiento, y borrado de anteriores comunicaciones. | C139: 400.00 € | D139: 1 | E139: =C139*D139 -> 400.00 €
B140: PROGRAMACIÓN SCADA Modificación de la programación, pruebas y puesta en servicio de SCADA Intouch a consecuencia del nuevo hardware y del nuevo mapeado de comunicaciones. | C140: 300.00 € | D140: 1 | E140: =C140*D140 -> 300.00 €
A141: CAP.2.3 | B141: DERIVACIÓN BASAKARTE S5 | E141: =SUM(E142:E149) -> 4,538.80 €
B142: SWITCH SHDSL 2 PUERTOS ETIC 2 PUERTOS + BYPASS XSLAN + BP2400 // Siemens Scalance equivalente | C142: 1,020.80 € | D142: 1 | E142: =D142*C142 -> 1,020.80 €
B143: DESCARGADOR DE SOBRETENSIONES LÍNEA EQUIPO VALVETRAB PHOENIX CONTACT con 4 puertos | C143: 198.00 € | D143: 1 | E143: =D143*C143 -> 198.00 €
B144: CPU ESTACIÓN REMOTA SIMATIC S7-1200 - 1214C 6ES7214-1AG40-0XB0 // SCHNEIDER TM251 MESE 14 ED 24V DC; 10 SD 24 V DC; 2 EA incorporadas Siemens. Tarjetas TM3DI16, TMDQ16T, TM3AI8 en el caso Schneider. | C144: 470.00 € | D144: 1 | E144: =C144*D144 -> 470.00 €
B145: MÓDULO DE 1 S. ANALÓGICA SIMATIC S7-1200, SM1221 //EQUIVALENTE SCHNEIDER | C145: 200.00 € | D145: 1 | E145: =C145*D145 -> 200.00 €
B146: INSTALACIÓN Y CONEXIONADO Incluyendo cableado, borneros y pequeño material para su completo conexionado. | C146: 500.00 € | D146: 1 | E146: =C146*D146 -> 500.00 €
B147: PROGRAMACIÓN PLC Y PUESTA EN MARCHA Configuración, parametrización y P.E.M. del PLC local, pruebas en taller y emplazamiento. | C147: 1,450.00 € | D147: 1 | E147: =C147*D147 -> 1,450.00 €
B148: PROGRAMACIÓN COMUNICACIONES SWITCHES SHDSL Configuración, parametrización y P.E.M de comunicaciones incluyendo pruebas en taller y emplazamiento, y borrado de anteriores comunicaciones. | C148: 400.00 € | D148: 1 | E148: =C148*D148 -> 400.00 €
B149: PROGRAMACIÓN SCADA Modificación de la programación, pruebas y puesta en servicio de SCADA Intouch a consecuencia del nuevo hardware y del nuevo mapeado de comunicaciones. | C149: 300.00 € | D149: 1 | E149: =C149*D149 -> 300.00 €
A150: CAP.2.4 | B150: DEPÓSITO ZUMAIA S5 | E150: =SUM(E151:E164) -> 6,373.80 €
B151: SWITCH SHDSL 2 PUERTOS ETIC 2 PUERTOS + BYPASS XSLAN + BP2400 // Siemens Scalance equivalente. | C151: 1,020.80 € | D151: 1 | E151: =D151*C151 -> 1,020.80 €
B152: DESCARGADOR DE SOBRETENSIONES LÍNEA EQUIPO VALVETRAB PHOENIX CONTACT con 4 puertos | C152: 198.00 € | D152: 1 | E152: =D152*C152 -> 198.00 €
B153: CPU ESTACIÓN REMOTA SIMATIC S7-1200 - 1214C 6ES7214-1AG40-0XB0 // SCHNEIDER TM251 MESE. 14 ED 24V DC; 10 SD 24 V DC; 2 EA incorporadas Siemens. Tarjetas TM3DI16, TMDQ16T, TM3AI8 en el caso Schneider. | C153: 470.00 € | D153: 1 | E153: =C153*D153 -> 470.00 €
B154: MÓDULO DE 16 E. DIGITALES SIMATIC S7-1200, SM1221 //6ES7221-1BH32-0XB0 TM3DI16 EN EL CASO DE SCHNEIDER | C154: 200.00 € | D154: 1 | E154: =C154*D154 -> 200.00 €
B155: MÓDULO DE 16 S. DIGITALES SIMATIC S7-1200, SM1221 //6ES7221-1BH32-0XB0 (O TM3DI16 EN EL CASO DE SCHNEIDER) | C155: 200.00 € | D155: 1 | E155: =C155*D155 -> 200.00 €
B156: MÓDULO DE 4 E.ANALÓGICAS SIMATIC S7-1200, SM 1231, 4 EA //6ES7231-4HF32-0XB0 // Schneider TM3AI8 | C156: 250.00 € | D156: 1 | E156: =C156*D156 -> 250.00 €
B157: PANTALLA HMI LOCAL 4" Siemens ETHERNET Y COLOR Basic Pantalla TFT // Schneider equivalente | C157: 315.00 € | D157: 1 | E157: =C157*D157 -> 315.00 €
B158: PUERTA RITTAL AE 1073 RAL7035 en sustitución de la existente. | C158: 270.00 € | D158: 1 | E158: =C158*D158 -> 270.00 €
B159: INSTALACIÓN Y CONEXIONADO Incluyendo cableado, borneros y pequeño material para su completo conexionado. | C159: 700.00 € | D159: 1 | E159: =C159*D159 -> 700.00 €
B160: INSTALACIÓN NUEVA PUERTA RITTAL Sustitución de tapa marca Rittal existente por mismo modelo, incluyendo trabajo de troquelado y montaje de canaletas de la nueva puerta. | C160: 100.00 € | D160: 1 | E160: =C160*D160 -> 100.00 €
B161: PROGRAMACIÓN PLC Y PUESTA EN MARCHA Configuración, parametrización y P.E.M. del PLC local, pruebas en taller y emplazamiento. | C161: 1,450.00 € | D161: 1 | E161: =C161*D161 -> 1,450.00 €
B162: PROGRAMACIÓN PANTALLA HMI Configuración, parametrización pantalla HMI, pruebas en taller y emplazamiento. | C162: 500.00 € | D162: 1 | E162: =C162*D162 -> 500.00 €
B163: PROGRAMACIÓN COMUNICACIONES SWITCHES SHDSL Configuración, parametrización y P.E.M de comunicaciones incluyendo pruebas en taller y emplazamiento, y borrado de anteriores comunicaciones. | C163: 400.00 € | D163: 1 | E163: =C163*D163 -> 400.00 €
B164: PROGRAMACIÓN SCADA Modificación de la programación, pruebas y puesta en servicio de SCADA Intouch a consecuencia del nuevo hardware y del nuevo mapeado de comunicaciones. | C164: 300.00 € | D164: 1 | E164: =C164*D164 -> 300.00 €
A165: CAP.2.5 | B165: DEPÓSITO ARTADI S7 | E165: =SUM(E166:E173) -> 4,653.80 €
B166: SWITCH SHDSL 2 PUERTOS ETIC 2 PUERTOS + BYPASS XSLAN + BP2400 // Siemens Scalance equivalente | C166: 1,020.80 € | D166: 1 | E166: =D166*C166 -> 1,020.80 €
B167: DESCARGADOR DE SOBRETENSIONES LÍNEA EQUIPO VALVETRAB PHOENIX CONTACT con 4 puertos | C167: 198.00 € | D167: 1 | E167: =D167*C167 -> 198.00 €
B168: CP343-1 LEAN Módulo Ethernet SIEMENS 6GK7343-1CX10-0XE0 en sustitución de tarjeta TIM. | C168: 770.00 € | D168: 1 | E168: =C168*D168 -> 770.00 €
B169: CONECTOR DE BUS SIEMENS 6ES7390-0AA00-0AA0 S7 // equivalente Schneider | C169: 15.00 € | D169: 1 | E169: =C169*D169 -> 15.00 €
B170: INSTALACIÓN Y CONEXIONADO Incluyendo cableado, borneros y pequeño material para su completo conexionado. | C170: 500.00 € | D170: 1 | E170: =C170*D170 -> 500.00 €
B171: PROGRAMACIÓN PLC Y PUESTA EN MARCHA Configuración, parametrización y P.E.M. del PLC local, pruebas en taller y emplazamiento. | C171: 1,450.00 € | D171: 1 | E171: =C171*D171 -> 1,450.00 €
B172: PROGRAMACIÓN COMUNICACIONES SWITCHES SHDSL Configuración, parametrización y P.E.M de comunicaciones incluyendo pruebas en taller y emplazamiento, y borrado de anteriores comunicaciones. | C172: 400.00 € | D172: 1 | E172: =C172*D172 -> 400.00 €
B173: PROGRAMACIÓN SCADA Modificación de la programación, pruebas y puesta en servicio de SCADA Intouch a consecuencia del nuevo hardware y del nuevo mapeado de comunicaciones. | C173: 300.00 € | D173: 1 | E173: =C173*D173 -> 300.00 €
A174: CAP.2.6 | B174: DERIVACIÓN OIKIA S5 y S7 | E174: =SUM(E175:E185) -> 7,028.39 €
B175: SWITCH SHDSL 1 PUERTO ETIC 1 PUERTO XSLAN + 1400 /Siemenes Scalance equivalente | C175: 742.50 € | D175: 1 | E175: =D175*C175 -> 742.50 €
B176: DESCARGADOR DE SOBRETENSIONES LÍNEA EQUIPO VALVETRAB PHOENIX CONTACT con 4 puertos | C176: 198.00 € | D176: 2 | E176: =D176*C176 -> 396.00 €
B177: SWITCH SHDSL 2 PUERTOS ETIC 2 PUERTOS + BYPASS XSLAN + BP2400 // Siemens Scalance equivalente | C177: 1,020.80 € | D177: 1 | E177: =D177*C177 -> 1,020.80 €
B178: ROUTER VPN 4G ETIC IPL-C-100.LE // Siemens Scalance equivalente Inc. antena, kit montaje y cableado 310. | C178: 599.09 € | D178: 1 | E178: =D178*C178 -> 599.09 €
B179: CPU ESTACIÓN REMOTA SIMATIC S7-1200 - 1214C 6ES7214-1AG40-0XB0 // SCHNEIDER TM251 MESE 14 ED 24V DC; 10 SD 24 V DC; 2 EA incorporadas Siemens. Tarjetas TM3DI16, TMDQ16T, TM3AI8 en el caso Schneider. | C179: 470.00 € | D179: 1 | E179: =C179*D179 -> 470.00 €
B180: MÓDULO DE 4 E.ANALÓGICAS SIMATIC S7-1200, SM 1231, 4 EA //6ES7231-4HF32-0XB0 // Schneider TM3AI8 | C180: 250.00 € | D180: 1 | E180: =C180*D180 -> 250.00 €
B181: INSTALACIÓN Y CONEXIONADO Incluyendo cableado, borneros y pequeño material para su completo conexionado. | C181: 500.00 € | D181: 1 | E181: =C181*D181 -> 500.00 €
B182: PROGRAMACIÓN PLC Y PUESTA EN MARCHA Configuración, parametrización y P.E.M. del PLC local, pruebas en taller y emplazamiento. | C182: 1,450.00 € | D182: 1 | E182: =C182*D182 -> 1,450.00 €
B183: PROGRAMACIÓN PANTALLA HMI Configuración, parametrización pantalla HMI, pruebas en taller y emplazamiento. | C183: 500.00 € | D183: 1 | E183: =C183*D183 -> 500.00 €
B184: PROGRAMACIÓN COMUNICACIONES SWITCHES SHDSL Configuración, parametrización y P.E.M de comunicaciones incluyendo pruebas en taller y emplazamiento, y borrado de anteriores comunicaciones. | C184: 400.00 € | D184: 1 | E184: =C184*D184 -> 400.00 €
B185: PROGRAMACIÓN SCADA Modificación de la programación, pruebas y puesta en servicio de SCADA Intouch a consecuencia del nuevo hardware y del nuevo mapeado de comunicaciones. | C185: 700.00 € | D185: 1 | E185: =C185*D185 -> 700.00 €
A186: CAP.2.7 | B186: BOMBEO ELKANO | E186: =SUM(E187:E198) -> 7,588.80 €
B187: SWITCH SHDSL 2 PUERTOS ETIC 2 PUERTOS + BYPASS XSLAN + BP2400 // Siemens Scalance equivalente | C187: 1,020.80 € | D187: 1 | E187: =C187*D187 -> 1,020.80 €
B188: DESCARGADOR DE SOBRETENSIONES LÍNEA EQUIPO VALVETRAB PHOENIX CONTACT con 4 puertos | C188: 198.00 € | D188: 1 | E188: =C188*D188 -> 198.00 €
B189: CPU ESTACIÓN REMOTA SIMATIC S7-1200 - 1214C 6ES7214-1AG40-0XB0 // SCHNEIDER TM251 MESE 14 ED 24V DC; 10 SD 24 V DC; 2 EA incorporadas Siemens. Tarjetas TM3DI16, TMDQ16T, TM3AI8 en el caso Schneider. | C189: 470.00 € | D189: 1 | E189: =C189*D189 -> 470.00 €
B190: MÓDULO DE 4 E.ANALÓGICAS SIMATIC S7-1200, SM 1231, 4 EA //6ES7231-4HF32-0XB0 // Schneider TM3AI8 | C190: 250.00 € | D190: 1 | E190: =C190*D190 -> 250.00 €
B191: SIMATIC HMI LOCAL 7" Siemens ETHERNET Y COLOR Basic Pantalla TFT Siemens // EQUIVALENTE SCHNEIDER | C191: 650.00 € | D191: 1 | E191: =C191*D191 -> 650.00 €
B192: FUENTE ALIMENTACIÓN CPU REMOTAS SITOP PSU6200 24 V/10 A // 6EP3334-7SB00-3AX0 ABL8RPS24100 EN EL CASO DE SCHNEIDER | C192: 200.00 € | D192: 1 | E192: =C192*D192 -> 200.00 €
B193: MANO DE OBRA DE MODIFICACIÓN DE CUADRO Incluyendo cableado, borneros, interruptores automáticos, distribuidores 24V y pequeño material para su completo conexionado. | C193: 500.00 € | D193: 1 | E193: =C193*D193 -> 500.00 €
B194: INSTALACIÓN Y CONEXIONADO Incluyendo cableado, borneros y pequeño material para su completo conexionado. | C194: 500.00 € | D194: 1 | E194: =C194*D194 -> 500.00 €
B195: PROGRAMACIÓN PLC Y PUESTA EN MARCHA Configuración, parametrización y P.E.M. del PLC local, pruebas en taller y emplazamiento. | C195: 1,450.00 € | D195: 1 | E195: =C195*D195 -> 1,450.00 €
B196: PROGRAMACIÓN PANTALLA HMI Configuración, parametrización pantalla HMI, pruebas en taller y emplazamiento. | C196: 500.00 € | D196: 1 | E196: =C196*D196 -> 500.00 €
B197: PROGRAMACIÓN COMUNICACIONES SWITCHES SHDSL Configuración, parametrización y P.E.M de comunicaciones incluyendo pruebas en taller y emplazamiento, y borrado de anteriores comunicaciones. | C197: 400.00 € | D197: 1 | E197: =C197*D197 -> 400.00 €
B198: PROGRAMACIÓN SCADA Programación de nuevas variables, alarmas, pantalla de control en SCADA. | C198: 1,450.00 € | D198: 1 | E198: =C198*D198 -> 1,450.00 €
A199: CAP.2.8 | B199: DEPÓSITO ELKANO | E199: =SUM(E200:E211) -> 9,878.80 €
B200: SWITCH SHDSL 2 PUERTOS ETIC 2 PUERTOS + BYPASS XSLAN + BP2400 // Siemens Scalance equivalente | C200: 1,020.80 € | D200: 1 | E200: =D200*C200 -> 1,020.80 €
... 143 more rows
